[Event "Titled Tuesday Blitz May 9 Early 2023"]
[White "Golubev, Mikhail"]
[Black "Hayrapetyan, Hovik"]
[WhiteFideId "14100983"]
[BlackFideId "13302639"]
[WhiteElo "2374"]
[BlackElo "2348"]
[Result "1/2-1/2"]
[Round "08"]
[TimeControl "180+2"]
[Date "2023.05.09"]
[WhiteClock "0:00:13"]
[BlackClock "0:00:13"]

1. e4 {[%clk 0:03:00]}  c5 {[%clk 0:02:59]} 2. Nf3 {[%clk 0:03:00]}  d6 {[%clk 0:03:00]} 3. d4 {[%clk 0:03:00]}  cxd4 {[%clk 0:03:00]} 4. Nxd4 {[%clk 0:03:00]}  Nf6 {[%clk 0:03:00]} 5. Nc3 {[%clk 0:03:01]}  a6 {[%clk 0:03:01]} 6. Bc4 {[%clk 0:03:01]}  e6 {[%clk 0:02:59]} 7. O-O {[%clk 0:03:02]}  b5 {[%clk 0:02:58]} 8. Bb3 {[%clk 0:03:02]}  Bb7 {[%clk 0:02:57]} 9. Re1 {[%clk 0:02:54]}  Nbd7 {[%clk 0:02:46]} 10. a4 {[%clk 0:02:53]}  b4 {[%clk 0:02:41]} 11. Nd5 {[%clk 0:02:48]}  Nc5 {[%clk 0:02:37]} 12. Bg5 {[%clk 0:02:15]}  Nxb3 {[%clk 0:02:00]} 13. cxb3 {[%clk 0:02:06]}  Be7 {[%clk 0:01:53]} 14. Nxe7 {[%clk 0:01:39]}  Qxe7 {[%clk 0:01:49]} 15. Nf5 {[%clk 0:01:39]}  exf5 {[%clk 0:01:48]} 16. exf5 {[%clk 0:01:40]}  Be4 {[%clk 0:01:47]} 17. Bxf6 {[%clk 0:01:29]}  gxf6 {[%clk 0:01:47]} 18. f3 {[%clk 0:01:30]}  d5 {[%clk 0:01:34]} 19. fxe4 {[%clk 0:01:29]}  Qc5+ {[%clk 0:01:23]} 20. Kh1 {[%clk 0:01:27]}  d4 {[%clk 0:01:23]} 21. Rc1 {[%clk 0:01:25]}  Qe5 {[%clk 0:01:23]} 22. Rc4 {[%clk 0:01:10]}  Rd8 {[%clk 0:01:22]} 23. Qd3 {[%clk 0:01:04]}  O-O {[%clk 0:00:41]} 24. Rd1 {[%clk 0:01:04]}  a5 {[%clk 0:00:38]} 25. Rxd4 {[%clk 0:01:03]}  Rxd4 {[%clk 0:00:38]} 26. Qxd4 {[%clk 0:01:03]}  Qxd4 {[%clk 0:00:37]} 27. Rxd4 {[%clk 0:01:03]}  Rc8 {[%clk 0:00:38]} 28. h3 {[%clk 0:01:01]}  Rc2 {[%clk 0:00:36]} 29. Rd5 {[%clk 0:00:48]}  Rxb2 {[%clk 0:00:36]} 30. Rxa5 {[%clk 0:00:48]}  Rxb3 {[%clk 0:00:36]} 31. Rb5 {[%clk 0:00:48]}  Rb1+ {[%clk 0:00:32]} 32. Kh2 {[%clk 0:00:48]}  b3 {[%clk 0:00:32]} 33. a5 {[%clk 0:00:45]}  Ra1 {[%clk 0:00:27]} 34. Rxb3 {[%clk 0:00:44]}  Rxa5 {[%clk 0:00:27]} 35. Kg3 {[%clk 0:00:42]}  Ra2 {[%clk 0:00:22]} 36. Kf3 {[%clk 0:00:40]}  Kg7 {[%clk 0:00:22]} 37. Re3 {[%clk 0:00:38]}  h6 {[%clk 0:00:18]} 38. Re2 {[%clk 0:00:38]}  Ra3+ {[%clk 0:00:18]} 39. Kf4 {[%clk 0:00:38]}  Ra4 {[%clk 0:00:18]} 40. Re3 {[%clk 0:00:37]}  Rb4 {[%clk 0:00:18]} 41. Rg3+ {[%clk 0:00:37]}  Kh7 {[%clk 0:00:18]} 42. h4 {[%clk 0:00:31]}  Ra4 {[%clk 0:00:18]} 43. h5 {[%clk 0:00:31]}  Rb4 {[%clk 0:00:18]} 44. Rg4 {[%clk 0:00:28]}  Ra4 {[%clk 0:00:18]} 45. Ke3 {[%clk 0:00:28]}  Ra5 {[%clk 0:00:13]} 46. Kd4 {[%clk 0:00:27]}  Rb5 {[%clk 0:00:13]} 47. Rf4 {[%clk 0:00:22]}  Ra5 {[%clk 0:00:13]} 48. Rf2 {[%clk 0:00:20]}  Kg7 {[%clk 0:00:13]} 49. g4 {[%clk 0:00:18]}  Ra4+ {[%clk 0:00:13]} 50. Kd5 {[%clk 0:00:18]}  Ra5+ {[%clk 0:00:14]} 51. Kc6 {[%clk 0:00:16]}  Re5 {[%clk 0:00:14]} 52. Re2 {[%clk 0:00:16]}  Kf8 {[%clk 0:00:14]} 53. Kd6 {[%clk 0:00:16]}  Kg7 {[%clk 0:00:14]} 54. Re3 {[%clk 0:00:15]}  Kf8 {[%clk 0:00:15]} 55. Re2 {[%clk 0:00:13]}  Kg7 {[%clk 0:00:15]} 56. Re3 {[%clk 0:00:13]}  Kf8 {[%clk 0:00:13]} 57. Re2 {[%clk 0:00:13]} 1/2-1/2


[Site "https://www.chess.com"]

[Event "Titled Tuesday Blitz May 9 Early 2023"]
[White "brm72"]
[Black "Hadzimanolis, Antonios"]
[BlackFideId "4202813"]
[WhiteElo "2579"]
[BlackElo "2242"]
[Result "0-1"]
[Round "08"]
[TimeControl "180+2"]
[Date "2023.05.09"]
[WhiteClock "0:00:32"]
[BlackClock "0:00:15"]

1. e4 {[%clk 0:03:00]}  e5 {[%clk 0:02:57]} 2. Nf3 {[%clk 0:03:00]}  Nc6 {[%clk 0:02:57]} 3. Bc4 {[%clk 0:03:01]}  Nf6 {[%clk 0:02:56]} 4. d4 {[%clk 0:03:01]}  exd4 {[%clk 0:02:56]} 5. e5 {[%clk 0:03:02]}  Ne4 {[%clk 0:02:55]} 6. Qe2 {[%clk 0:03:01]}  Nc5 {[%clk 0:02:53]} 7. O-O {[%clk 0:03:02]}  Ne6 {[%clk 0:02:48]} 8. Rd1 {[%clk 0:02:51]}  d5 {[%clk 0:02:48]} 9. exd6 {[%clk 0:02:50]}  Bxd6 {[%clk 0:02:47]} 10. c3 {[%clk 0:02:48]}  O-O {[%clk 0:02:40]} 11. cxd4 {[%clk 0:02:48]}  Re8 {[%clk 0:02:21]} 12. Qc2 {[%clk 0:02:35]}  Nexd4 {[%clk 0:01:51]} 13. Nxd4 {[%clk 0:02:32]}  Nxd4 {[%clk 0:01:50]} 14. Qd2 {[%clk 0:01:43]}  Qh4 {[%clk 0:01:34]} 15. h3 {[%clk 0:01:29]}  c5 {[%clk 0:01:25]} 16. Nc3 {[%clk 0:01:21]}  Bxh3 {[%clk 0:01:17]} 17. Qg5 {[%clk 0:01:15]}  Qxg5 {[%clk 0:01:15]} 18. Bxg5 {[%clk 0:01:15]}  Bg4 {[%clk 0:01:15]} 19. f3 {[%clk 0:01:13]}  Be6 {[%clk 0:01:05]} 20. Bxe6 {[%clk 0:01:12]}  Rxe6 {[%clk 0:01:00]} 21. Ne4 {[%clk 0:01:11]}  Bf8 {[%clk 0:00:50]} 22. Be3 {[%clk 0:01:10]}  f5 {[%clk 0:00:47]} 23. Bxd4 {[%clk 0:01:07]}  cxd4 {[%clk 0:00:44]} 24. Nf2 {[%clk 0:01:00]}  Re2 {[%clk 0:00:33]} 25. Nd3 {[%clk 0:01:00]}  Rc8 {[%clk 0:00:32]} 26. Rac1 {[%clk 0:00:49]}  Rxc1 {[%clk 0:00:29]} 27. Rxc1 {[%clk 0:00:50]}  Rd2 {[%clk 0:00:29]} 28. Ne5 {[%clk 0:00:47]}  d3 {[%clk 0:00:26]} 29. Rc3 {[%clk 0:00:43]}  Rd1+ {[%clk 0:00:25]} 30. Kf2 {[%clk 0:00:43]}  d2 {[%clk 0:00:25]} 31. Ke2 {[%clk 0:00:33]}  Re1+ {[%clk 0:00:25]} 32. Kxd2 {[%clk 0:00:33]}  Rxe5 {[%clk 0:00:26]} 33. Rc7 {[%clk 0:00:33]}  Re7 {[%clk 0:00:25]} 34. Rc8 {[%clk 0:00:33]}  Kf7 {[%clk 0:00:25]} 35. Kd3 {[%clk 0:00:33]}  g6 {[%clk 0:00:25]} 36. Kc4 {[%clk 0:00:34]}  b6 {[%clk 0:00:25]} 37. Kd5 {[%clk 0:00:34]}  Re2 {[%clk 0:00:20]} 38. Rc7+ {[%clk 0:00:34]}  Be7 {[%clk 0:00:20]} 39. g4 {[%clk 0:00:35]}  Rxb2 {[%clk 0:00:20]} 40. gxf5 {[%clk 0:00:34]}  gxf5 {[%clk 0:00:20]} 41. a4 {[%clk 0:00:34]}  a5 {[%clk 0:00:19]} 42. Ke5 {[%clk 0:00:34]}  Rb4 {[%clk 0:00:19]} 43. Kxf5 {[%clk 0:00:34]}  Rxa4 {[%clk 0:00:19]} 44. Rb7 {[%clk 0:00:33]}  Rb4 {[%clk 0:00:18]} 45. Ke5 {[%clk 0:00:34]}  a4 {[%clk 0:00:19]} 46. f4 {[%clk 0:00:35]}  Rb5+ {[%clk 0:00:18]} 47. Ke4 {[%clk 0:00:35]}  a3 {[%clk 0:00:18]} 48. Ra7 {[%clk 0:00:33]}  Ra5 {[%clk 0:00:17]} 49. Rb7 {[%clk 0:00:31]}  a2 {[%clk 0:00:15]} 50. f5 {[%clk 0:00:32]} 0-1


[Site "https://www.chess.com"]

[Event "Titled Tuesday Blitz May 9 Early 2023"]
[White "Abdilkhair, Abilmansur"]
[Black "ArtemDyachuk"]
[WhiteFideId "13716417"]
[WhiteElo "2215"]
[BlackElo "2535"]
[Result "1-0"]
[Round "08"]
[TimeControl "180+2"]
[Date "2023.05.09"]
[WhiteClock "0:00:50"]
[BlackClock "0:00:00"]

1. g3 {[%clk 0:02:55]}  d5 {[%clk 0:02:57]} 2. Bg2 {[%clk 0:02:56]}  e5 {[%clk 0:02:56]} 3. c4 {[%clk 0:02:56]}  dxc4 {[%clk 0:02:53]} 4. Qa4+ {[%clk 0:02:52]}  c6 {[%clk 0:02:53]} 5. Qxc4 {[%clk 0:02:52]}  Be6 {[%clk 0:02:45]} 6. Qc2 {[%clk 0:02:53]}  Nf6 {[%clk 0:02:40]} 7. Nc3 {[%clk 0:02:51]}  Bc5 {[%clk 0:02:36]} 8. Nf3 {[%clk 0:02:50]}  Bb6 {[%clk 0:02:32]} 9. O-O {[%clk 0:02:50]}  Nbd7 {[%clk 0:02:26]} 10. Rd1 {[%clk 0:02:39]}  O-O {[%clk 0:02:12]} 11. d4 {[%clk 0:02:38]}  exd4 {[%clk 0:02:08]} 12. Nxd4 {[%clk 0:02:39]}  Bg4 {[%clk 0:02:06]} 13. h3 {[%clk 0:02:23]}  Bh5 {[%clk 0:02:01]} 14. Nf5 {[%clk 0:02:21]}  Bg6 {[%clk 0:01:50]} 15. Bg5 {[%clk 0:02:17]}  Re8 {[%clk 0:01:34]} 16. e4 {[%clk 0:02:05]}  h6 {[%clk 0:01:18]} 17. Bxf6 {[%clk 0:02:02]}  gxf6 {[%clk 0:01:10]} 18. Nxh6+ {[%clk 0:01:59]}  Kh7 {[%clk 0:01:09]} 19. Ng4 {[%clk 0:01:56]}  Kg7 {[%clk 0:01:06]} 20. Qd2 {[%clk 0:01:55]}  Re7 {[%clk 0:00:54]} 21. Qh6+ {[%clk 0:01:55]}  Kg8 {[%clk 0:00:54]} 22. Rd6 {[%clk 0:01:39]}  Bc7 {[%clk 0:00:35]} 23. Rxf6 {[%clk 0:01:37]}  Qf8 {[%clk 0:00:28]} 24. Rf3 {[%clk 0:01:03]}  Qxh6 {[%clk 0:00:26]} 25. Nxh6+ {[%clk 0:01:04]}  Kg7 {[%clk 0:00:26]} 26. Nf5+ {[%clk 0:01:04]}  Bxf5 {[%clk 0:00:24]} 27. Rxf5 {[%clk 0:01:05]}  Ne5 {[%clk 0:00:22]} 28. Rd1 {[%clk 0:01:03]}  Re6 {[%clk 0:00:15]} 29. f4 {[%clk 0:01:00]}  Nc4 {[%clk 0:00:08]} 30. Rd7 {[%clk 0:01:01]}  Bb6+ {[%clk 0:00:08]} 31. Kh2 {[%clk 0:01:01]}  Rf8 {[%clk 0:00:04]} 32. b3 {[%clk 0:00:53]}  Ne3 {[%clk 0:00:04]} 33. Rg5+ {[%clk 0:00:53]}  Kh6 {[%clk 0:00:00]} 34. Rxb7 {[%clk 0:00:50]} 1-0


[Site "https://www.chess.com"]

[Event "Titled Tuesday Blitz May 9 Early 2023"]
[White "Toktomushev, Teimur"]
[Black "Vlassov, Nikolai"]
[WhiteFideId "14176726"]
[BlackFideId "4103360"]
[WhiteElo "2116"]
[BlackElo "2324"]
[Result "0-1"]
[Round "08"]
[TimeControl "180+2"]
[Date "2023.05.09"]
[WhiteClock "0:00:00"]
[BlackClock "0:00:13"]

1. d4 {[%clk 0:02:59]}  Nf6 {[%clk 0:02:59]} 2. c4 {[%clk 0:02:59]}  Nc6 {[%clk 0:02:59]} 3. Nf3 {[%clk 0:02:56]}  e6 {[%clk 0:02:59]} 4. Nc3 {[%clk 0:02:46]}  Bb4 {[%clk 0:02:58]} 5. Bd2 {[%clk 0:02:44]}  O-O {[%clk 0:02:58]} 6. e3 {[%clk 0:02:44]}  d6 {[%clk 0:02:57]} 7. a3 {[%clk 0:02:36]}  Bxc3 {[%clk 0:02:57]} 8. Bxc3 {[%clk 0:02:37]}  Ne4 {[%clk 0:02:57]} 9. Qc2 {[%clk 0:02:36]}  Nxc3 {[%clk 0:02:56]} 10. Qxc3 {[%clk 0:02:37]}  Qe7 {[%clk 0:02:56]} 11. Be2 {[%clk 0:02:22]}  e5 {[%clk 0:02:56]} 12. O-O {[%clk 0:02:06]}  Bg4 {[%clk 0:02:55]} 13. Rfe1 {[%clk 0:01:38]}  Rae8 {[%clk 0:02:48]} 14. h3 {[%clk 0:01:33]}  Bh5 {[%clk 0:02:32]} 15. b4 {[%clk 0:01:16]}  e4 {[%clk 0:02:06]} 16. Ne5 {[%clk 0:00:35]}  dxe5 {[%clk 0:01:48]} 17. Bxh5 {[%clk 0:00:34]}  exd4 {[%clk 0:01:48]} 18. exd4 {[%clk 0:00:35]}  Qg5 {[%clk 0:01:43]} 19. Be2 {[%clk 0:00:21]}  f5 {[%clk 0:01:43]} 20. b5 {[%clk 0:00:13]}  Ne7 {[%clk 0:01:40]} 21. Qg3 {[%clk 0:00:13]}  Qf6 {[%clk 0:01:24]} 22. Qxc7 {[%clk 0:00:12]}  f4 {[%clk 0:01:21]} 23. Qe5 {[%clk 0:00:06]}  Qxe5 {[%clk 0:01:09]} 24. dxe5 {[%clk 0:00:07]}  Ng6 {[%clk 0:01:10]} 25. Bh5 {[%clk 0:00:07]}  Rxe5 {[%clk 0:01:09]} 26. Bxg6 {[%clk 0:00:08]}  hxg6 {[%clk 0:01:10]} 27. Rad1 {[%clk 0:00:07]}  Rf7 {[%clk 0:01:08]} 28. Rd4 {[%clk 0:00:04]}  Rfe7 {[%clk 0:01:08]} 29. f3 {[%clk 0:00:03]}  exf3 {[%clk 0:01:04]} 30. Rxe5 {[%clk 0:00:04]}  Rxe5 {[%clk 0:01:03]} 31. Rxf4 {[%clk 0:00:03]}  fxg2 {[%clk 0:01:00]} 32. Kxg2 {[%clk 0:00:04]}  Re3 {[%clk 0:00:58]} 33. Rf3 {[%clk 0:00:03]}  Re2+ {[%clk 0:00:48]} 34. Kg3 {[%clk 0:00:04]}  Rc2 {[%clk 0:00:48]} 35. Rf4 {[%clk 0:00:03]}  Rc3+ {[%clk 0:00:48]} 36. Kg4 {[%clk 0:00:03]}  Rxa3 {[%clk 0:00:48]} 37. Kg5 {[%clk 0:00:02]}  Rg3+ {[%clk 0:00:47]} 38. Kh4 {[%clk 0:00:01]}  Rc3 {[%clk 0:00:45]} 39. Rd4 {[%clk 0:00:02]}  Kh7 {[%clk 0:00:43]} 40. Rd7 {[%clk 0:00:01]}  Rxc4+ {[%clk 0:00:43]} 41. Kg3 {[%clk 0:00:02]}  b6 {[%clk 0:00:38]} 42. Rxa7 {[%clk 0:00:02]}  Rc5 {[%clk 0:00:38]} 43. Rb7 {[%clk 0:00:02]}  Rxb5 {[%clk 0:00:38]} 44. Kg2 {[%clk 0:00:01]}  g5 {[%clk 0:00:38]} 45. Kg3 {[%clk 0:00:02]}  Kg6 {[%clk 0:00:38]} 46. Kg4 {[%clk 0:00:02]}  Rb4+ {[%clk 0:00:38]} 47. Kg3 {[%clk 0:00:02]}  Kf6 {[%clk 0:00:38]} 48. Rb8 {[%clk 0:00:02]}  Rb1 {[%clk 0:00:37]} 49. Rf8+ {[%clk 0:00:01]}  Kg6 {[%clk 0:00:37]} 50. Rb8 {[%clk 0:00:02]}  b5 {[%clk 0:00:37]} 51. Rb6+ {[%clk 0:00:03]}  Kf5 {[%clk 0:00:36]} 52. Rb8 {[%clk 0:00:03]}  Rb3+ {[%clk 0:00:36]} 53. Kg2 {[%clk 0:00:03]}  b4 {[%clk 0:00:37]} 54. Rb5+ {[%clk 0:00:02]}  Kf4 {[%clk 0:00:36]} 55. Kh2 {[%clk 0:00:01]}  Rb2+ {[%clk 0:00:36]} 56. Kg1 {[%clk 0:00:02]}  b3 {[%clk 0:00:36]} 57. Kf1 {[%clk 0:00:01]}  Ke3 {[%clk 0:00:27]} 58. Rxg5 {[%clk 0:00:01]}  Kd3 {[%clk 0:00:19]} 59. Rg3+ {[%clk 0:00:01]}  Kc2 {[%clk 0:00:17]} 60. Rg2+ {[%clk 0:00:01]}  Kc1 {[%clk 0:00:15]} 61. Rxg7 {[%clk 0:00:02]}  Rc2 {[%clk 0:00:14]} 62. Rb7 {[%clk 0:00:02]}  b2 {[%clk 0:00:14]} 63. h4 {[%clk 0:00:02]}  b1=Q {[%clk 0:00:12]} 64. Rxb1+ {[%clk 0:00:02]}  Kxb1 {[%clk 0:00:13]} 65. h5 {[%clk 0:00:02]}  Rc5 {[%clk 0:00:13]} 66. h6 {[%clk 0:00:00]}  Rh5 {[%clk 0:00:13]} 0-1


[Site "https://www.chess.com"]

[Event "Titled Tuesday Blitz May 9 Early 2023"]
[White "Manukian, Artak"]
[Black "Moore, Nicholas"]
[WhiteFideId "13301373"]
[BlackFideId "4303709"]
[WhiteElo "2130"]
[BlackElo "2526"]
[Result "1-0"]
[Round "08"]
[TimeControl "180+2"]
[Date "2023.05.09"]
[WhiteClock "0:00:22"]
[BlackClock "0:00:22"]

1. e4 {[%clk 0:03:00]}  c5 {[%clk 0:02:59]} 2. Nf3 {[%clk 0:03:00]}  e6 {[%clk 0:03:00]} 3. c3 {[%clk 0:03:00]}  Nf6 {[%clk 0:02:59]} 4. e5 {[%clk 0:03:01]}  Nd5 {[%clk 0:03:00]} 5. d4 {[%clk 0:03:02]}  cxd4 {[%clk 0:03:00]} 6. cxd4 {[%clk 0:03:02]}  d6 {[%clk 0:03:01]} 7. Nc3 {[%clk 0:03:03]}  Nxc3 {[%clk 0:03:01]} 8. bxc3 {[%clk 0:03:03]}  Qc7 {[%clk 0:03:01]} 9. Bd2 {[%clk 0:03:02]}  Bd7 {[%clk 0:03:00]} 10. Bd3 {[%clk 0:03:00]}  Bc6 {[%clk 0:02:59]} 11. O-O {[%clk 0:02:59]}  Nd7 {[%clk 0:02:59]} 12. Re1 {[%clk 0:02:53]}  Ke7 {[%clk 0:02:57]} 13. Bg5+ {[%clk 0:02:44]}  Ke8 {[%clk 0:02:53]} 14. Qe2 {[%clk 0:02:28]}  dxe5 {[%clk 0:02:09]} 15. dxe5 {[%clk 0:02:19]}  Bc5 {[%clk 0:02:04]} 16. Nd4 {[%clk 0:02:11]}  Bxd4 {[%clk 0:01:52]} 17. cxd4 {[%clk 0:02:12]}  Nb6 {[%clk 0:01:52]} 18. Rac1 {[%clk 0:01:49]}  Qd7 {[%clk 0:01:50]} 19. Qg4 {[%clk 0:01:46]}  h5 {[%clk 0:01:35]} 20. Qf4 {[%clk 0:01:42]}  Nd5 {[%clk 0:01:33]} 21. Qg3 {[%clk 0:01:38]}  Kf8 {[%clk 0:01:30]} 22. h4 {[%clk 0:01:34]}  Ne7 {[%clk 0:01:20]} 23. Red1 {[%clk 0:01:28]}  Rc8 {[%clk 0:01:11]} 24. Bb1 {[%clk 0:01:20]}  Qd5 {[%clk 0:01:04]} 25. Rc5 {[%clk 0:01:16]}  Qd7 {[%clk 0:01:04]} 26. Qa3 {[%clk 0:01:11]}  f6 {[%clk 0:00:55]} 27. exf6 {[%clk 0:01:07]}  gxf6 {[%clk 0:00:55]} 28. Bxf6 {[%clk 0:01:08]}  Rg8 {[%clk 0:00:54]} 29. Bg5 {[%clk 0:00:58]}  Kf7 {[%clk 0:00:50]} 30. Re5 {[%clk 0:00:54]}  Bd5 {[%clk 0:00:46]} 31. Be4 {[%clk 0:00:48]}  Nc6 {[%clk 0:00:44]} 32. Qf3+ {[%clk 0:00:35]}  Ke8 {[%clk 0:00:38]} 33. Rxd5 {[%clk 0:00:32]}  exd5 {[%clk 0:00:36]} 34. Bxd5 {[%clk 0:00:32]}  Rg7 {[%clk 0:00:26]} 35. Qxh5+ {[%clk 0:00:24]}  Kf8 {[%clk 0:00:22]} 36. Qh8+ {[%clk 0:00:22]} 1-0


[Site "https://www.chess.com"]

[Event "Titled Tuesday Blitz May 9 Early 2023"]
[White "Boldoo, Erdenepurev"]
[Black "Jimenez Almeida, Luis David"]
[WhiteFideId "4901037"]
[BlackFideId "22242244"]
[WhiteElo "2299"]
[BlackElo "2245"]
[Result "1-0"]
[Round "08"]
[TimeControl "180+2"]
[Date "2023.05.09"]
[WhiteClock "0:01:30"]
[BlackClock "0:00:31"]

1. d4 {[%clk 0:03:00]}  g6 {[%clk 0:02:59]} 2. c4 {[%clk 0:02:57]}  Bg7 {[%clk 0:02:59]} 3. h4 {[%clk 0:02:51]}  c5 {[%clk 0:02:58]} 4. d5 {[%clk 0:02:49]}  b5 {[%clk 0:02:56]} 5. h5 {[%clk 0:02:48]}  bxc4 {[%clk 0:02:51]} 6. h6 {[%clk 0:02:47]}  Bf6 {[%clk 0:02:50]} 7. e3 {[%clk 0:02:45]}  Ba6 {[%clk 0:02:47]} 8. Nc3 {[%clk 0:02:40]}  d6 {[%clk 0:02:34]} 9. Bxc4 {[%clk 0:02:37]}  Bxc4 {[%clk 0:02:31]} 10. Qa4+ {[%clk 0:02:37]}  Nd7 {[%clk 0:02:31]} 11. Qxc4 {[%clk 0:02:38]}  Nb6 {[%clk 0:02:30]} 12. Qb5+ {[%clk 0:02:37]}  Qd7 {[%clk 0:02:30]} 13. Qxd7+ {[%clk 0:02:37]}  Kxd7 {[%clk 0:02:29]} 14. Nge2 {[%clk 0:02:38]}  e6 {[%clk 0:02:25]} 15. dxe6+ {[%clk 0:02:36]}  fxe6 {[%clk 0:02:26]} 16. e4 {[%clk 0:02:36]}  Nc4 {[%clk 0:02:23]} 17. b3 {[%clk 0:02:32]}  Ne5 {[%clk 0:02:23]} 18. Rh3 {[%clk 0:02:13]}  Ne7 {[%clk 0:02:17]} 19. f4 {[%clk 0:02:07]}  N5c6 {[%clk 0:02:14]} 20. Bb2 {[%clk 0:02:06]}  Rab8 {[%clk 0:01:45]} 21. e5 {[%clk 0:02:01]}  dxe5 {[%clk 0:01:36]} 22. Ne4 {[%clk 0:02:02]}  Rhf8 {[%clk 0:01:26]} 23. Nxc5+ {[%clk 0:02:00]}  Ke8 {[%clk 0:01:19]} 24. Nxe6 {[%clk 0:01:59]}  exf4 {[%clk 0:01:19]} 25. Nxf8 {[%clk 0:01:37]}  Bxb2 {[%clk 0:01:18]} 26. Rb1 {[%clk 0:01:38]}  Kxf8 {[%clk 0:00:58]} 27. Rxb2 {[%clk 0:01:38]}  g5 {[%clk 0:00:55]} 28. Rh5 {[%clk 0:01:33]}  Rb5 {[%clk 0:00:52]} 29. Nxf4 {[%clk 0:01:33]}  Re5+ {[%clk 0:00:51]} 30. Re2 {[%clk 0:01:33]}  Ra5 {[%clk 0:00:31]} 31. Rxg5 {[%clk 0:01:30]} 1-0


[Site "https://www.chess.com"]

[Event "Titled Tuesday Blitz May 9 Early 2023"]
[White "Shuvalov, Evgenij"]
[Black "Gutkin, Ilya"]
[WhiteFideId "4187237"]
[BlackFideId "16203470"]
[WhiteElo "2080"]
[BlackElo "2265"]
[Result "1/2-1/2"]
[Round "08"]
[TimeControl "180+2"]
[Date "2023.05.09"]
[WhiteClock "0:00:10"]
[BlackClock "0:00:13"]

1. d4 {[%clk 0:02:58]}  e6 {[%clk 0:02:59]} 2. c4 {[%clk 0:02:57]}  b6 {[%clk 0:02:59]} 3. e4 {[%clk 0:02:57]}  Bb7 {[%clk 0:03:00]} 4. Bd3 {[%clk 0:02:56]}  Bb4+ {[%clk 0:03:00]} 5. Bd2 {[%clk 0:02:56]}  Qe7 {[%clk 0:02:55]} 6. Nf3 {[%clk 0:02:54]}  Bxd2+ {[%clk 0:02:53]} 7. Qxd2 {[%clk 0:02:51]}  d6 {[%clk 0:02:53]} 8. Nc3 {[%clk 0:02:51]}  e5 {[%clk 0:02:51]} 9. O-O {[%clk 0:02:49]}  Nf6 {[%clk 0:02:46]} 10. Rfe1 {[%clk 0:02:49]}  O-O {[%clk 0:02:46]} 11. Nd5 {[%clk 0:02:47]}  Bxd5 {[%clk 0:02:33]} 12. exd5 {[%clk 0:02:39]}  Nbd7 {[%clk 0:02:29]} 13. dxe5 {[%clk 0:02:37]}  dxe5 {[%clk 0:02:25]} 14. Nd4 {[%clk 0:02:31]}  Rfe8 {[%clk 0:02:09]} 15. Rad1 {[%clk 0:02:11]}  a5 {[%clk 0:02:01]} 16. Nb5 {[%clk 0:02:00]}  Qc5 {[%clk 0:01:54]} 17. Qc2 {[%clk 0:01:42]}  g6 {[%clk 0:01:35]} 18. Bf1 {[%clk 0:01:36]}  Kg7 {[%clk 0:01:23]} 19. g3 {[%clk 0:01:33]}  e4 {[%clk 0:01:20]} 20. Bg2 {[%clk 0:01:29]}  Ne5 {[%clk 0:01:18]} 21. d6 {[%clk 0:01:11]}  Nd3 {[%clk 0:01:04]} 22. Nxc7 {[%clk 0:00:31]}  Nxe1 {[%clk 0:01:02]} 23. Rxe1 {[%clk 0:00:32]}  Qxd6 {[%clk 0:00:55]} 24. Nxa8 {[%clk 0:00:32]}  Rxa8 {[%clk 0:00:51]} 25. Bxe4 {[%clk 0:00:31]}  Re8 {[%clk 0:00:51]} 26. Qc3 {[%clk 0:00:29]}  Qe5 {[%clk 0:00:33]} 27. Qxe5 {[%clk 0:00:25]}  Rxe5 {[%clk 0:00:34]} 28. f3 {[%clk 0:00:25]}  Nd7 {[%clk 0:00:19]} 29. Rd1 {[%clk 0:00:22]}  Nc5 {[%clk 0:00:18]} 30. Bd3 {[%clk 0:00:16]}  Nxd3 {[%clk 0:00:18]} 31. Rxd3 {[%clk 0:00:17]}  b5 {[%clk 0:00:12]} 32. cxb5 {[%clk 0:00:17]}  Rxb5 {[%clk 0:00:12]} 33. Rb3 {[%clk 0:00:17]}  Rd5 {[%clk 0:00:12]} 34. Kf2 {[%clk 0:00:16]}  Rd2+ {[%clk 0:00:12]} 35. Ke3 {[%clk 0:00:16]}  Rxh2 {[%clk 0:00:12]} 36. Kd4 {[%clk 0:00:13]}  a4 {[%clk 0:00:11]} 37. Ra3 {[%clk 0:00:12]}  Rxb2 {[%clk 0:00:10]} 38. Rxa4 {[%clk 0:00:12]}  Rf2 {[%clk 0:00:09]} 39. Ke3 {[%clk 0:00:12]}  Rb2 {[%clk 0:00:09]} 40. Ra8 {[%clk 0:00:12]}  h5 {[%clk 0:00:09]} 41. a4 {[%clk 0:00:12]}  Ra2 {[%clk 0:00:08]} 42. a5 {[%clk 0:00:12]}  g5 {[%clk 0:00:08]} 43. a6 {[%clk 0:00:11]}  h4 {[%clk 0:00:09]} 44. gxh4 {[%clk 0:00:11]}  gxh4 {[%clk 0:00:10]} 45. Rb8 {[%clk 0:00:07]}  Rxa6 {[%clk 0:00:10]} 46. Rb4 {[%clk 0:00:07]}  h3 {[%clk 0:00:09]} 47. Rg4+ {[%clk 0:00:06]}  Rg6 {[%clk 0:00:09]} 48. Rh4 {[%clk 0:00:06]}  Rh6 {[%clk 0:00:10]} 49. Rxh6 {[%clk 0:00:06]}  Kxh6 {[%clk 0:00:11]} 50. Kf2 {[%clk 0:00:06]}  Kg5 {[%clk 0:00:08]} 51. Kg3 {[%clk 0:00:07]}  h2 {[%clk 0:00:08]} 52. Kxh2 {[%clk 0:00:07]}  Kf4 {[%clk 0:00:08]} 53. Kg2 {[%clk 0:00:07]}  Ke3 {[%clk 0:00:09]} 54. Kg3 {[%clk 0:00:08]}  f5 {[%clk 0:00:08]} 55. f4 {[%clk 0:00:08]}  Ke4 {[%clk 0:00:07]} 56. Kg2 {[%clk 0:00:08]}  Ke3 {[%clk 0:00:07]} 57. Kg3 {[%clk 0:00:08]}  Ke2 {[%clk 0:00:06]} 58. Kg2 {[%clk 0:00:08]}  Kd3 {[%clk 0:00:06]} 59. Kf3 {[%clk 0:00:08]}  Kd4 {[%clk 0:00:06]} 60. Kf2 {[%clk 0:00:07]}  Ke4 {[%clk 0:00:06]} 61. Kg2 {[%clk 0:00:07]}  Kxf4 {[%clk 0:00:07]} 62. Kf2 {[%clk 0:00:07]}  Ke4 {[%clk 0:00:08]} 63. Ke2 {[%clk 0:00:07]}  Kf4 {[%clk 0:00:08]} 64. Kf2 {[%clk 0:00:08]}  Kg4 {[%clk 0:00:09]} 65. Kg2 {[%clk 0:00:08]}  f4 {[%clk 0:00:09]} 66. Kf2 {[%clk 0:00:08]}  f3 {[%clk 0:00:09]} 67. Kf1 {[%clk 0:00:08]}  Kf4 {[%clk 0:00:09]} 68. Kf2 {[%clk 0:00:09]}  Ke4 {[%clk 0:00:10]} 69. Kf1 {[%clk 0:00:08]}  Ke3 {[%clk 0:00:10]} 70. Ke1 {[%clk 0:00:09]}  Kf4 {[%clk 0:00:11]} 71. Kf2 {[%clk 0:00:09]}  Kg4 {[%clk 0:00:12]} 72. Kf1 {[%clk 0:00:09]}  Kg3 {[%clk 0:00:13]} 73. Kg1 {[%clk 0:00:09]}  Kf4 {[%clk 0:00:13]} 74. Kf2 {[%clk 0:00:10]} 1/2-1/2


[Site "https://www.chess.com"]